[Event "Titled Tuesday Blitz January 17 Early 2023"]
[White "Parpiev, Isaak"]
[Black "Liyanage, Ranindu Dilshan"]
[WhiteFideId "34281576"]
[BlackFideId "9915834"]
[WhiteElo "2167"]
[BlackElo "2342"]
[Result "1-0"]
[Round "11"]
[TimeControl "180+2"]
[Date "2023.01.17"]
[WhiteClock "0:00:04"]
[BlackClock "0:00:14"]

1. e4 {[%clk 0:03:00]}  e5 {[%clk 0:02:58]} 2. Nf3 {[%clk 0:02:59]}  Nc6 {[%clk 0:02:59]} 3. Nc3 {[%clk 0:03:00]}  g6 {[%clk 0:02:58]} 4. d4 {[%clk 0:02:54]}  exd4 {[%clk 0:02:58]} 5. Nxd4 {[%clk 0:02:55]}  Bg7 {[%clk 0:02:59]} 6. Be3 {[%clk 0:02:55]}  Nge7 {[%clk 0:02:58]} 7. Bc4 {[%clk 0:02:51]}  O-O {[%clk 0:02:58]} 8. O-O {[%clk 0:02:51]}  a6 {[%clk 0:02:57]} 9. a4 {[%clk 0:02:49]}  d6 {[%clk 0:02:57]} 10. Bb3 {[%clk 0:02:47]}  Kh8 {[%clk 0:02:52]} 11. f4 {[%clk 0:02:46]}  f5 {[%clk 0:02:52]} 12. exf5 {[%clk 0:02:43]}  Nxf5 {[%clk 0:02:51]} 13. Nxf5 {[%clk 0:02:42]}  Bxf5 {[%clk 0:02:51]} 14. Qd2 {[%clk 0:02:32]}  Qd7 {[%clk 0:02:49]} 15. Kh1 {[%clk 0:02:30]}  Rae8 {[%clk 0:02:49]} 16. Rae1 {[%clk 0:02:29]}  h5 {[%clk 0:02:28]} 17. Nd5 {[%clk 0:02:26]}  h4 {[%clk 0:02:25]} 18. Qf2 {[%clk 0:02:17]}  Bxb2 {[%clk 0:02:15]} 19. c3 {[%clk 0:02:10]}  Ba3 {[%clk 0:02:14]} 20. Qxh4+ {[%clk 0:02:09]}  Kg7 {[%clk 0:02:14]} 21. a5 {[%clk 0:01:19]}  Qf7 {[%clk 0:01:54]} 22. Bc4 {[%clk 0:00:51]}  Rh8 {[%clk 0:01:49]} 23. Qf2 {[%clk 0:00:51]}  Rxe3 {[%clk 0:01:17]} 24. Nxe3 {[%clk 0:00:46]}  Qf6 {[%clk 0:01:17]} 25. Nxf5+ {[%clk 0:00:46]}  Qxf5 {[%clk 0:01:18]} 26. Be6 {[%clk 0:00:44]}  Qf6 {[%clk 0:01:17]} 27. Bd5 {[%clk 0:00:43]}  Bc5 {[%clk 0:01:13]} 28. Qf3 {[%clk 0:00:40]}  Ne7 {[%clk 0:01:06]} 29. Re6 {[%clk 0:00:34]}  Qh4 {[%clk 0:01:05]} 30. h3 {[%clk 0:00:15]}  Nf5 {[%clk 0:00:50]} 31. Rfe1 {[%clk 0:00:14]}  Bf2 {[%clk 0:00:43]} 32. Rd1 {[%clk 0:00:09]}  Bg3 {[%clk 0:00:41]} 33. Bxb7 {[%clk 0:00:08]}  Bxf4 {[%clk 0:00:40]} 34. Rde1 {[%clk 0:00:06]}  Qg5 {[%clk 0:00:35]} 35. Kg1 {[%clk 0:00:06]}  Bg3 {[%clk 0:00:35]} 36. Rf1 {[%clk 0:00:03]}  Rh4 {[%clk 0:00:30]} 37. Be4 {[%clk 0:00:03]}  Rf4 {[%clk 0:00:30]} 38. Qe2 {[%clk 0:00:03]}  Rxf1+ {[%clk 0:00:25]} 39. Qxf1 {[%clk 0:00:04]}  Ne3 {[%clk 0:00:20]} 40. Qf3 {[%clk 0:00:02]}  Nc4 {[%clk 0:00:16]} 41. Rxg6+ {[%clk 0:00:02]}  Qxg6 {[%clk 0:00:14]} 42. Bxg6 {[%clk 0:00:03]}  Be5 {[%clk 0:00:14]} 43. Qf7+ {[%clk 0:00:03]}  Kh6 {[%clk 0:00:14]} 44. Qh7+ {[%clk 0:00:04]} 1-0


[Site "https://www.chess.com"]

[Event "Titled Tuesday Blitz January 17 Early 2023"]
[White "Yelisieiev, Yevhenii"]
[Black "Reprintsev, Alexander"]
[WhiteFideId "14139642"]
[BlackFideId "14100541"]
[WhiteElo "2418"]
[BlackElo "2253"]
[Result "0-1"]
[Round "11"]
[TimeControl "180+2"]
[Date "2023.01.17"]
[WhiteClock "0:00:03"]
[BlackClock "0:00:19"]

1. d4 {[%clk 0:02:57]}  d5 {[%clk 0:02:58]} 2. Nf3 {[%clk 0:02:56]}  Nc6 {[%clk 0:02:57]} 3. c4 {[%clk 0:02:55]}  e5 {[%clk 0:02:57]} 4. cxd5 {[%clk 0:02:37]}  Qxd5 {[%clk 0:02:55]} 5. Nc3 {[%clk 0:02:31]}  Bb4 {[%clk 0:02:55]} 6. Bd2 {[%clk 0:02:14]}  Bxc3 {[%clk 0:02:55]} 7. Bxc3 {[%clk 0:02:13]}  e4 {[%clk 0:02:55]} 8. Ne5 {[%clk 0:02:10]}  Nxe5 {[%clk 0:02:54]} 9. dxe5 {[%clk 0:02:10]}  Ne7 {[%clk 0:02:52]} 10. e3 {[%clk 0:02:06]}  Bd7 {[%clk 0:02:39]} 11. Qd4 {[%clk 0:01:47]}  c5 {[%clk 0:02:31]} 12. Qd2 {[%clk 0:01:32]}  O-O-O {[%clk 0:02:23]} 13. Be2 {[%clk 0:01:18]}  Qc6 {[%clk 0:02:14]} 14. Qc2 {[%clk 0:01:13]}  Qg6 {[%clk 0:02:04]} 15. g3 {[%clk 0:00:56]}  Bg4 {[%clk 0:01:59]} 16. b4 {[%clk 0:00:48]}  Bxe2 {[%clk 0:01:56]} 17. Qxe2 {[%clk 0:00:44]}  Rd3 {[%clk 0:01:34]} 18. Rc1 {[%clk 0:00:43]}  Nd5 {[%clk 0:01:29]} 19. Bd4 {[%clk 0:00:41]}  Nxb4 {[%clk 0:01:20]} 20. Bxc5 {[%clk 0:00:30]}  Nc6 {[%clk 0:01:15]} 21. Bxa7 {[%clk 0:00:27]}  Rhd8 {[%clk 0:01:09]} 22. Bc5 {[%clk 0:00:18]}  R8d5 {[%clk 0:00:59]} 23. Bd6 {[%clk 0:00:17]}  Kd7 {[%clk 0:00:55]} 24. O-O {[%clk 0:00:16]}  Nxe5 {[%clk 0:00:53]} 25. Bxe5 {[%clk 0:00:15]}  Rxe5 {[%clk 0:00:53]} 26. Qb2 {[%clk 0:00:15]}  Red5 {[%clk 0:00:36]} 27. Qxb7+ {[%clk 0:00:16]}  Ke6 {[%clk 0:00:35]} 28. Rc6+ {[%clk 0:00:10]}  Rd6 {[%clk 0:00:35]} 29. Qc8+ {[%clk 0:00:11]}  Ke5 {[%clk 0:00:31]} 30. Qe8+ {[%clk 0:00:09]}  Qe6 {[%clk 0:00:27]} 31. Qxe6+ {[%clk 0:00:07]}  Kxe6 {[%clk 0:00:27]} 32. Rxd6+ {[%clk 0:00:06]}  Kxd6 {[%clk 0:00:27]} 33. Ra1 {[%clk 0:00:06]}  Ra3 {[%clk 0:00:27]} 34. Kg2 {[%clk 0:00:06]}  f5 {[%clk 0:00:26]} 35. h3 {[%clk 0:00:06]}  g5 {[%clk 0:00:20]} 36. g4 {[%clk 0:00:04]}  f4 {[%clk 0:00:20]} 37. exf4 {[%clk 0:00:04]}  gxf4 {[%clk 0:00:20]} 38. h4 {[%clk 0:00:04]}  Ke6 {[%clk 0:00:20]} 39. Re1 {[%clk 0:00:03]}  Ke5 {[%clk 0:00:20]} 40. Ra1 {[%clk 0:00:02]}  h6 {[%clk 0:00:20]} 41. g5 {[%clk 0:00:02]}  hxg5 {[%clk 0:00:19]} 42. hxg5 {[%clk 0:00:03]}  Kf5 {[%clk 0:00:20]} 43. g6 {[%clk 0:00:03]}  Kxg6 {[%clk 0:00:20]} 44. Re1 {[%clk 0:00:04]}  Kf5 {[%clk 0:00:20]} 45. Ra1 {[%clk 0:00:03]}  Kg4 {[%clk 0:00:21]} 46. Rf1 {[%clk 0:00:03]}  Rxa2 {[%clk 0:00:20]} 47. Re1 {[%clk 0:00:04]}  e3 {[%clk 0:00:20]} 48. Kg1 {[%clk 0:00:03]}  exf2+ {[%clk 0:00:19]} 0-1


[Site "https://www.chess.com"]

[Event "Titled Tuesday Blitz January 17 Early 2023"]
[White "Odegov, Artem"]
[Black "Manukian, Artak"]
[WhiteFideId "34183644"]
[BlackFideId "13301373"]
[WhiteElo "2261"]
[BlackElo "2196"]
[Result "0-1"]
[Round "11"]
[TimeControl "180+2"]
[Date "2023.01.17"]
[WhiteClock "0:00:04"]
[BlackClock "0:00:19"]

1. d4 {[%clk 0:03:00]}  Nf6 {[%clk 0:02:59]} 2. c4 {[%clk 0:03:01]}  g6 {[%clk 0:02:58]} 3. Nc3 {[%clk 0:03:01]}  Bg7 {[%clk 0:02:59]} 4. e4 {[%clk 0:03:02]}  O-O {[%clk 0:03:00]} 5. h3 {[%clk 0:03:03]}  d6 {[%clk 0:03:00]} 6. Be3 {[%clk 0:03:03]}  e5 {[%clk 0:03:00]} 7. d5 {[%clk 0:03:04]}  c5 {[%clk 0:02:59]} 8. g4 {[%clk 0:03:04]}  Na6 {[%clk 0:02:58]} 9. Bd3 {[%clk 0:03:02]}  Nc7 {[%clk 0:02:57]} 10. Nge2 {[%clk 0:03:02]}  a6 {[%clk 0:02:57]} 11. a4 {[%clk 0:03:03]}  Rb8 {[%clk 0:02:56]} 12. Ng3 {[%clk 0:03:03]}  Nfe8 {[%clk 0:02:54]} 13. h4 {[%clk 0:03:00]}  h6 {[%clk 0:02:53]} 14. f3 {[%clk 0:02:57]}  Bd7 {[%clk 0:02:47]} 15. Qd2 {[%clk 0:02:56]}  Kh7 {[%clk 0:02:46]} 16. Ke2 {[%clk 0:02:20]}  b5 {[%clk 0:02:33]} 17. cxb5 {[%clk 0:02:20]}  axb5 {[%clk 0:02:33]} 18. a5 {[%clk 0:02:21]}  c4 {[%clk 0:02:27]} 19. Bc2 {[%clk 0:02:17]}  b4 {[%clk 0:02:26]} 20. Nd1 {[%clk 0:02:17]}  Nb5 {[%clk 0:02:17]} 21. Ba4 {[%clk 0:02:09]}  Nd4+ {[%clk 0:02:08]} 22. Kf2 {[%clk 0:02:09]}  Qxa5 {[%clk 0:01:59]} 23. Bxd7 {[%clk 0:01:31]}  Qxa1 {[%clk 0:01:57]} 24. h5 {[%clk 0:01:26]}  g5 {[%clk 0:01:48]} 25. Nf5 {[%clk 0:01:19]}  Nf6 {[%clk 0:01:37]} 26. Nxd4 {[%clk 0:01:02]}  Nxd7 {[%clk 0:01:33]} 27. Nf5 {[%clk 0:01:03]}  Rfc8 {[%clk 0:01:25]} 28. Nxg7 {[%clk 0:00:52]}  Kxg7 {[%clk 0:01:18]} 29. Bxg5 {[%clk 0:00:52]}  c3 {[%clk 0:01:09]} 30. Bxh6+ {[%clk 0:00:48]}  Kh7 {[%clk 0:01:08]} 31. Qg5 {[%clk 0:00:23]}  Rg8 {[%clk 0:01:05]} 32. Qf5+ {[%clk 0:00:24]}  Kxh6 {[%clk 0:00:52]} 33. Qxf7 {[%clk 0:00:23]}  Qa7+ {[%clk 0:00:40]} 34. Kg3 {[%clk 0:00:12]}  Rbf8 {[%clk 0:00:39]} 35. Qe6+ {[%clk 0:00:05]}  Rf6 {[%clk 0:00:39]} 36. Qe7 {[%clk 0:00:06]}  c2 {[%clk 0:00:26]} 37. Nf2 {[%clk 0:00:05]}  Qe3 {[%clk 0:00:23]} 38. Kh4 {[%clk 0:00:05]}  Qxf2+ {[%clk 0:00:20]} 39. Kh3 {[%clk 0:00:04]}  Rxf3# {[%clk 0:00:19]} 0-1


[Site "https://www.chess.com"]

[Event "Titled Tuesday Blitz January 17 Early 2023"]
[White "Ginzburg, Yakov"]
[Black "Valle Maytin, Luis Enrique"]
[WhiteFideId "4157176"]
[BlackFideId "3503666"]
[WhiteElo "2405"]
[BlackElo "2241"]
[Result "1-0"]
[Round "11"]
[TimeControl "180+2"]
[Date "2023.01.17"]
[WhiteClock "0:02:47"]
[BlackClock "0:02:16"]

1. e4 {[%clk 0:02:59]}  c6 {[%clk 0:03:00]} 2. d4 {[%clk 0:02:59]}  d5 {[%clk 0:03:01]} 3. Nc3 {[%clk 0:02:59]}  dxe4 {[%clk 0:03:01]} 4. Nxe4 {[%clk 0:03:00]}  Nf6 {[%clk 0:03:02]} 5. Nxf6+ {[%clk 0:03:00]}  exf6 {[%clk 0:03:02]} 6. Bc4 {[%clk 0:03:00]}  Bd6 {[%clk 0:03:02]} 7. Ne2 {[%clk 0:03:00]}  O-O {[%clk 0:03:01]} 8. O-O {[%clk 0:03:01]}  Nd7 {[%clk 0:02:58]} 9. Ng3 {[%clk 0:02:59]}  Re8 {[%clk 0:02:58]} 10. Qh5 {[%clk 0:02:58]}  g6 {[%clk 0:02:54]} 11. Bxf7+ {[%clk 0:02:57]}  Kxf7 {[%clk 0:02:22]} 12. Qxh7+ {[%clk 0:02:57]}  Ke6 {[%clk 0:02:22]} 13. Re1+ {[%clk 0:02:56]}  Kd5 {[%clk 0:02:22]} 14. Qf7+ {[%clk 0:02:55]}  Kxd4 {[%clk 0:02:21]} 15. Rxe8 {[%clk 0:02:51]}  Ne5 {[%clk 0:02:16]} 16. Be3# {[%clk 0:02:47]} 1-0


[Site "https://www.chess.com"]

[Event "Titled Tuesday Blitz January 17 Early 2023"]
[White "Martynov, Pavel"]
[Black "Kabilov, Amin"]
[WhiteFideId "4101260"]
[BlackFideId "14700859"]
[WhiteElo "2414"]
[BlackElo "2207"]
[Result "1-0"]
[Round "11"]
[TimeControl "180+2"]
[Date "2023.01.17"]
[WhiteClock "0:00:45"]
[BlackClock "0:00:02"]

1. e4 {[%clk 0:03:00]}  e5 {[%clk 0:02:57]} 2. Nf3 {[%clk 0:03:00]}  d6 {[%clk 0:02:57]} 3. Nc3 {[%clk 0:03:00]}  Nf6 {[%clk 0:02:56]} 4. Bc4 {[%clk 0:03:00]}  Be7 {[%clk 0:02:56]} 5. Bb3 {[%clk 0:02:59]}  O-O {[%clk 0:02:41]} 6. d3 {[%clk 0:02:58]}  Nc6 {[%clk 0:02:27]} 7. Ne2 {[%clk 0:02:57]}  Bg4 {[%clk 0:02:26]} 8. c3 {[%clk 0:02:39]}  d5 {[%clk 0:02:21]} 9. h3 {[%clk 0:02:37]}  dxe4 {[%clk 0:02:19]} 10. hxg4 {[%clk 0:02:32]}  exf3 {[%clk 0:02:03]} 11. gxf3 {[%clk 0:02:33]}  Qd7 {[%clk 0:01:13]} 12. Ng3 {[%clk 0:02:22]}  Rfd8 {[%clk 0:00:46]} 13. Bc2 {[%clk 0:01:33]}  Nd5 {[%clk 0:00:44]} 14. Qe2 {[%clk 0:01:27]}  Nf4 {[%clk 0:00:39]} 15. Bxf4 {[%clk 0:01:19]}  exf4 {[%clk 0:00:37]} 16. Ne4 {[%clk 0:01:17]}  a5 {[%clk 0:00:22]} 17. Rh5 {[%clk 0:01:07]}  g6 {[%clk 0:00:20]} 18. Rh3 {[%clk 0:01:05]}  a4 {[%clk 0:00:17]} 19. Kf1 {[%clk 0:01:03]}  a3 {[%clk 0:00:16]} 20. b4 {[%clk 0:00:57]}  b5 {[%clk 0:00:16]} 21. Rd1 {[%clk 0:00:56]}  Ne5 {[%clk 0:00:16]} 22. d4 {[%clk 0:00:52]}  Nc4 {[%clk 0:00:16]} 23. Bb3 {[%clk 0:00:52]}  Kg7 {[%clk 0:00:13]} 24. Kg2 {[%clk 0:00:52]}  Re8 {[%clk 0:00:11]} 25. Rdh1 {[%clk 0:00:50]}  Rh8 {[%clk 0:00:08]} 26. Bxc4 {[%clk 0:00:48]}  bxc4 {[%clk 0:00:08]} 27. Qxc4 {[%clk 0:00:49]}  Rae8 {[%clk 0:00:06]} 28. d5 {[%clk 0:00:46]}  Bf6 {[%clk 0:00:04]} 29. Nxf6 {[%clk 0:00:45]}  Kxf6 {[%clk 0:00:04]} 30. Qd4+ {[%clk 0:00:45]}  Re5 {[%clk 0:00:04]} 31. Qxf4+ {[%clk 0:00:45]}  Kg7 {[%clk 0:00:02]} 32. Qxe5+ {[%clk 0:00:45]} 1-0


[Site "https://www.chess.com"]

[Event "Titled Tuesday Blitz January 17 Early 2023"]
[White "Yuan, Qingyu"]
[Black "Tomaszewski, Kacper"]
[WhiteFideId "8609772"]
[BlackFideId "1127373"]
[WhiteElo "2373"]
[BlackElo "2313"]
[Result "1-0"]
[Round "11"]
[TimeControl "180+2"]
[Date "2023.01.17"]
[WhiteClock "0:00:25"]
[BlackClock "0:00:03"]

1. e4 {[%clk 0:03:00]}  e5 {[%clk 0:02:59]} 2. Nf3 {[%clk 0:03:01]}  Nc6 {[%clk 0:02:59]} 3. Bb5 {[%clk 0:03:01]}  Nge7 {[%clk 0:02:54]} 4. d4 {[%clk 0:02:56]}  exd4 {[%clk 0:02:50]} 5. Nxd4 {[%clk 0:02:57]}  Nxd4 {[%clk 0:02:49]} 6. Qxd4 {[%clk 0:02:58]}  c6 {[%clk 0:02:49]} 7. Bc4 {[%clk 0:02:53]}  Qb6 {[%clk 0:02:48]} 8. Qc3 {[%clk 0:02:41]}  d5 {[%clk 0:02:44]} 9. Bd3 {[%clk 0:02:17]}  Ng6 {[%clk 0:02:32]} 10. O-O {[%clk 0:02:15]}  d4 {[%clk 0:02:25]} 11. Qe1 {[%clk 0:02:09]}  Be7 {[%clk 0:02:17]} 12. f4 {[%clk 0:02:03]}  O-O {[%clk 0:02:17]} 13. Nd2 {[%clk 0:02:03]}  f5 {[%clk 0:02:15]} 14. Bc4+ {[%clk 0:01:43]}  Kh8 {[%clk 0:02:15]} 15. e5 {[%clk 0:01:25]}  d3+ {[%clk 0:02:05]} 16. Kh1 {[%clk 0:01:25]}  dxc2 {[%clk 0:02:00]} 17. Nf3 {[%clk 0:01:22]}  Bb4 {[%clk 0:01:25]} 18. Qe2 {[%clk 0:01:21]}  Qc7 {[%clk 0:01:16]} 19. Qxc2 {[%clk 0:01:18]}  h6 {[%clk 0:01:04]} 20. Be3 {[%clk 0:01:16]}  Qe7 {[%clk 0:00:58]} 21. Bd3 {[%clk 0:01:12]}  Be6 {[%clk 0:00:54]} 22. a3 {[%clk 0:01:11]}  Ba5 {[%clk 0:00:53]} 23. Bc5 {[%clk 0:01:12]}  Qf7 {[%clk 0:00:47]} 24. Bxf8 {[%clk 0:01:08]}  Rxf8 {[%clk 0:00:48]} 25. Nd4 {[%clk 0:01:07]}  Bd5 {[%clk 0:00:41]} 26. Nxf5 {[%clk 0:01:04]}  Qd7 {[%clk 0:00:26]} 27. Rad1 {[%clk 0:00:46]}  Bb6 {[%clk 0:00:24]} 28. b4 {[%clk 0:00:25]}  Be6 {[%clk 0:00:13]} 29. Be4 {[%clk 0:00:25]}  Qc8 {[%clk 0:00:09]} 30. Nd6 {[%clk 0:00:25]}  Qc7 {[%clk 0:00:03]} 31. Bxg6 {[%clk 0:00:25]} 1-0


[Site "https://www.chess.com"]

[Event "Titled Tuesday Blitz January 17 Early 2023"]
[White "Nguyen Hong Nhung"]
[Black "Shipov, Sergei"]
[WhiteFideId "12412201"]
[BlackFideId "4113624"]
[WhiteElo "2003"]
[BlackElo "2541"]
[Result "0-1"]
[Round "11"]
[TimeControl "180+2"]
[Date "2023.01.17"]
[WhiteClock "0:00:05"]
[BlackClock "0:01:25"]

1. e4 {[%clk 0:02:56]}  e6 {[%clk 0:02:59]} 2. d4 {[%clk 0:02:56]}  d5 {[%clk 0:03:00]} 3. Nc3 {[%clk 0:02:57]}  Bb4 {[%clk 0:03:00]} 4. e5 {[%clk 0:02:56]}  c5 {[%clk 0:03:00]} 5. a3 {[%clk 0:02:57]}  Ba5 {[%clk 0:03:00]} 6. b4 {[%clk 0:02:48]}  cxd4 {[%clk 0:02:59]} 7. Nb5 {[%clk 0:02:46]}  Bc7 {[%clk 0:02:59]} 8. f4 {[%clk 0:02:31]}  Bd7 {[%clk 0:02:58]} 9. Nf3 {[%clk 0:02:24]}  Bxb5 {[%clk 0:02:58]} 10. Bxb5+ {[%clk 0:02:25]}  Nc6 {[%clk 0:02:57]} 11. Nxd4 {[%clk 0:02:25]}  Ne7 {[%clk 0:02:58]} 12. O-O {[%clk 0:02:18]}  O-O {[%clk 0:02:56]} 13. c3 {[%clk 0:02:10]}  a5 {[%clk 0:02:35]} 14. Nxc6 {[%clk 0:01:52]}  Nxc6 {[%clk 0:02:23]} 15. Be3 {[%clk 0:01:47]}  Bb6 {[%clk 0:02:23]} 16. Rf3 {[%clk 0:01:37]}  Bxe3+ {[%clk 0:01:53]} 17. Rxe3 {[%clk 0:01:38]}  Qb6 {[%clk 0:01:54]} 18. Qd3 {[%clk 0:01:24]}  axb4 {[%clk 0:01:52]} 19. Bxc6 {[%clk 0:01:24]}  Rxa3 {[%clk 0:01:29]} 20. Rxa3 {[%clk 0:00:36]}  bxa3 {[%clk 0:01:30]} 21. c4 {[%clk 0:00:04]}  a2 {[%clk 0:01:28]} 22. Qa3 {[%clk 0:00:05]}  Qxe3+ {[%clk 0:01:24]} 23. Qxe3 {[%clk 0:00:04]}  a1=Q+ {[%clk 0:01:24]} 24. Kf2 {[%clk 0:00:05]}  bxc6 {[%clk 0:01:25]} 0-1


[Site "https://www.chess.com"]

[Event "Titled Tuesday Blitz January 17 Early 2023"]
[White "Shuvalova, Polina"]
[Black "Novikov, Evgenij"]
[WhiteFideId "24171760"]
[BlackFideId "4125380"]
[WhiteElo "2484"]
[BlackElo "2276"]
[Result "1-0"]
[Round "11"]
[TimeControl "180+2"]
[Date "2023.01.17"]
[WhiteClock "0:00:05"]
[BlackClock "0:00:05"]

1. d4 {[%clk 0:02:50]}  d5 {[%clk 0:02:58]} 2. Nf3 {[%clk 0:02:50]}  Nf6 {[%clk 0:02:57]} 3. Bf4 {[%clk 0:02:50]}  c5 {[%clk 0:02:56]} 4. e3 {[%clk 0:02:50]}  cxd4 {[%clk 0:02:54]} 5. exd4 {[%clk 0:02:49]}  Nc6 {[%clk 0:02:54]} 6. Nbd2 {[%clk 0:02:49]}  Bg4 {[%clk 0:02:51]} 7. c3 {[%clk 0:02:48]}  e6 {[%clk 0:02:51]} 8. Qb3 {[%clk 0:02:44]}  Qc8 {[%clk 0:02:51]} 9. Nh4 {[%clk 0:02:39]}  Be7 {[%clk 0:02:39]} 10. h3 {[%clk 0:02:38]}  Bh5 {[%clk 0:02:39]} 11. g4 {[%clk 0:02:39]}  Bg6 {[%clk 0:02:39]} 12. Nxg6 {[%clk 0:02:39]}  hxg6 {[%clk 0:02:39]} 13. Bg2 {[%clk 0:02:38]}  Bd8 {[%clk 0:02:22]} 14. O-O {[%clk 0:02:31]}  Bc7 {[%clk 0:02:22]} 15. Be3 {[%clk 0:02:26]}  Nxg4 {[%clk 0:02:07]} 16. hxg4 {[%clk 0:02:06]}  Bh2+ {[%clk 0:02:06]} 17. Kh1 {[%clk 0:02:07]}  Qc7 {[%clk 0:01:20]} 18. Bh3 {[%clk 0:01:49]}  Rxh3 {[%clk 0:01:13]} 19. Kg2 {[%clk 0:01:49]}  Rxe3 {[%clk 0:00:18]} 20. Rh1 {[%clk 0:01:31]}  Re2 {[%clk 0:00:07]} 21. Nf1 {[%clk 0:00:52]}  O-O-O {[%clk 0:00:04]} 22. Rxh2 {[%clk 0:00:51]}  Qf4 {[%clk 0:00:04]} 23. Kg1 {[%clk 0:00:44]}  Qxg4+ {[%clk 0:00:04]} 24. Rg2 {[%clk 0:00:45]}  Qf4 {[%clk 0:00:03]} 25. Qb5 {[%clk 0:00:45]}  Re4 {[%clk 0:00:02]} 26. Ng3 {[%clk 0:00:43]}  Rh8 {[%clk 0:00:02]} 27. Nxe4 {[%clk 0:00:42]}  Qxe4 {[%clk 0:00:03]} 28. Rd1 {[%clk 0:00:26]}  Qh4 {[%clk 0:00:03]} 29. Kf1 {[%clk 0:00:27]}  Qh5 {[%clk 0:00:02]} 30. Qe2 {[%clk 0:00:24]}  Qh1+ {[%clk 0:00:02]} 31. Rg1 {[%clk 0:00:25]}  Qh3+ {[%clk 0:00:03]} 32. Ke1 {[%clk 0:00:25]}  Qf5 {[%clk 0:00:04]} 33. Kd2 {[%clk 0:00:24]}  Na5 {[%clk 0:00:04]} 34. b3 {[%clk 0:00:24]}  Nc6 {[%clk 0:00:04]} 35. Rg3 {[%clk 0:00:24]}  a6 {[%clk 0:00:04]} 36. Rf3 {[%clk 0:00:22]}  Qg5+ {[%clk 0:00:05]} 37. Qe3 {[%clk 0:00:22]}  Qe7 {[%clk 0:00:05]} 38. Re1 {[%clk 0:00:22]}  Rh5 {[%clk 0:00:05]} 39. Rf4 {[%clk 0:00:20]}  Rf5 {[%clk 0:00:05]} 40. Rxf5 {[%clk 0:00:20]}  gxf5 {[%clk 0:00:06]} 41. Qg3 {[%clk 0:00:20]}  g6 {[%clk 0:00:06]} 42. Kc2 {[%clk 0:00:19]}  Qa3 {[%clk 0:00:06]} 43. Kb1 {[%clk 0:00:20]}  a5 {[%clk 0:00:06]} 44. Rh1 {[%clk 0:00:19]}  a4 {[%clk 0:00:06]} 45. Rh8+ {[%clk 0:00:19]}  Kd7 {[%clk 0:00:06]} 46. Rh7 {[%clk 0:00:19]}  axb3 {[%clk 0:00:06]} 47. axb3 {[%clk 0:00:17]}  Qxb3+ {[%clk 0:00:07]} 48. Kc1 {[%clk 0:00:18]}  Qa3+ {[%clk 0:00:06]} 49. Kd2 {[%clk 0:00:18]}  Na5 {[%clk 0:00:06]} 50. Rxf7+ {[%clk 0:00:17]}  Ke8 {[%clk 0:00:06]} 51. Rc7 {[%clk 0:00:16]}  Nc4+ {[%clk 0:00:06]} 52. Kd3 {[%clk 0:00:11]}  Qb3 {[%clk 0:00:05]} 53. Rc8+ {[%clk 0:00:05]}  Kf7 {[%clk 0:00:04]} 54. Qc7+ {[%clk 0:00:06]}  Kf6 {[%clk 0:00:04]} 55. Rf8+ {[%clk 0:00:06]}  Kg5 {[%clk 0:00:04]} 56. Qg3+ {[%clk 0:00:03]}  Kh6 {[%clk 0:00:05]} 57. Qh4+ {[%clk 0:00:04]}  Kg7 {[%clk 0:00:05]} 58. Qh8# {[%clk 0:00:05]} 1-0


[Site "https://www.chess.com"]

[Event "Titled Tuesday Blitz January 17 Early 2023"]
[White "Bodnaruk, Anastasia"]
[Black "Myshakov, Fyodor"]
[WhiteFideId "4181751"]
[BlackFideId "14111284"]
[WhiteElo "2350"]
[BlackElo "2292"]
[Result "1-0"]
[Round "11"]
[TimeControl "180+2"]
[Date "2023.01.17"]
[WhiteClock "0:01:53"]
[BlackClock "0:02:05"]

1. e4 {[%clk 0:03:00]}  c6 {[%clk 0:02:59]} 2. d4 {[%clk 0:03:00]}  d5 {[%clk 0:02:52]} 3. e5 {[%clk 0:03:00]}  Bf5 {[%clk 0:02:52]} 4. Nf3 {[%clk 0:03:00]}  e6 {[%clk 0:02:52]} 5. Be2 {[%clk 0:03:01]}  Ne7 {[%clk 0:02:49]} 6. O-O {[%clk 0:02:55]}  h6 {[%clk 0:02:48]} 7. Nbd2 {[%clk 0:02:54]}  Bh7 {[%clk 0:02:47]} 8. Nb3 {[%clk 0:02:53]}  Nf5 {[%clk 0:02:47]} 9. a4 {[%clk 0:02:53]}  Nd7 {[%clk 0:02:46]} 10. a5 {[%clk 0:02:53]}  Be7 {[%clk 0:02:45]} 11. g4 {[%clk 0:02:53]}  Nh4 {[%clk 0:02:44]} 12. Nxh4 {[%clk 0:02:54]}  Bxh4 {[%clk 0:02:44]} 13. f4 {[%clk 0:02:54]}  O-O {[%clk 0:02:42]} 14. f5 {[%clk 0:02:51]}  Bg5 {[%clk 0:02:40]} 15. Bd3 {[%clk 0:02:38]}  exf5 {[%clk 0:02:37]} 16. gxf5 {[%clk 0:02:36]}  c5 {[%clk 0:02:36]} 17. e6 {[%clk 0:02:29]}  fxe6 {[%clk 0:02:35]} 18. fxe6 {[%clk 0:02:29]}  Bxd3 {[%clk 0:02:32]} 19. cxd3 {[%clk 0:02:25]}  c4 {[%clk 0:02:20]} 20. dxc4 {[%clk 0:02:14]}  dxc4 {[%clk 0:02:20]} 21. exd7 {[%clk 0:02:03]}  cxb3 {[%clk 0:02:16]} 22. Qxb3+ {[%clk 0:02:01]}  Kh8 {[%clk 0:02:14]} 23. Rxf8+ {[%clk 0:02:00]}  Qxf8 {[%clk 0:02:15]} 24. Bxg5 {[%clk 0:02:01]}  hxg5 {[%clk 0:02:15]} 25. Re1 {[%clk 0:01:54]}  Rd8 {[%clk 0:02:12]} 26. Qh3+ {[%clk 0:01:53]}  Kg8 {[%clk 0:02:12]} 27. Qe6+ {[%clk 0:01:54]}  Qf7 {[%clk 0:02:05]} 28. Qe8+ {[%clk 0:01:53]}  Qf8 {[%clk 0:02:05]} 29. Qxd8 {[%clk 0:01:53]} 1-0


[Site "https://www.chess.com"]